[Event "Titled Tuesday Blitz September 28 2021"]
[White "Al-Tarboush, Ward"]
[Black "Rusan, Paul-Cristian"]
[WhiteFideId "7601450"]
[BlackFideId "1209191"]
[WhiteElo "2319"]
[BlackElo "2167"]
[Result "1-0"]
[Round "09"]
[TimeControl "180+1"]
[Date "2021.09.28"]
[WhiteClock "0:00:02"]
[BlackClock "0:00:02"]

1. e4 {[%clk 0:03:00]}  c5 {[%clk 0:02:58]} 2. Nf3 {[%clk 0:03:01]}  Nc6 {[%clk 0:02:57]} 3. d4 {[%clk 0:03:01]}  cxd4 {[%clk 0:02:57]} 4. Nxd4 {[%clk 0:03:02]}  e5 {[%clk 0:02:58]} 5. Nb5 {[%clk 0:03:02]}  d6 {[%clk 0:02:57]} 6. c4 {[%clk 0:03:02]}  Be7 {[%clk 0:02:55]} 7. b3 {[%clk 0:02:58]}  Be6 {[%clk 0:02:50]} 8. Ba3 {[%clk 0:02:57]}  Nf6 {[%clk 0:02:36]} 9. Bxd6 {[%clk 0:02:54]}  O-O {[%clk 0:02:33]} 10. Bxe7 {[%clk 0:02:49]}  Qxe7 {[%clk 0:02:33]} 11. N5c3 {[%clk 0:02:45]}  Rfd8 {[%clk 0:02:27]} 12. Nd5 {[%clk 0:02:45]}  Bxd5 {[%clk 0:02:26]} 13. exd5 {[%clk 0:02:44]}  e4 {[%clk 0:02:22]} 14. Be2 {[%clk 0:02:43]}  e3 {[%clk 0:02:17]} 15. O-O {[%clk 0:02:42]}  exf2+ {[%clk 0:02:17]} 16. Rxf2 {[%clk 0:02:43]}  Ne4 {[%clk 0:02:17]} 17. Rf3 {[%clk 0:02:42]}  Ne5 {[%clk 0:02:11]} 18. Rf4 {[%clk 0:02:33]}  Ng6 {[%clk 0:01:57]} 19. Rf3 {[%clk 0:02:17]}  Qc5+ {[%clk 0:01:45]} 20. Kf1 {[%clk 0:02:15]}  Nh4 {[%clk 0:01:45]} 21. Rf4 {[%clk 0:02:12]}  Qe3 {[%clk 0:01:35]} 22. g3 {[%clk 0:02:02]}  Nxg3+ {[%clk 0:01:18]} 23. hxg3 {[%clk 0:02:00]}  Qxg3 {[%clk 0:01:18]} 24. Rg4 {[%clk 0:01:55]}  Qh3+ {[%clk 0:01:12]} 25. Kg1 {[%clk 0:01:43]}  f5 {[%clk 0:01:10]} 26. Qf1 {[%clk 0:01:24]}  Qxf1+ {[%clk 0:01:05]} 27. Kxf1 {[%clk 0:01:19]}  fxg4 {[%clk 0:01:05]} 28. Bxg4 {[%clk 0:01:19]}  Nf5 {[%clk 0:01:01]} 29. Kg1 {[%clk 0:01:17]}  g6 {[%clk 0:00:58]} 30. Nc3 {[%clk 0:01:17]}  Rf8 {[%clk 0:00:53]} 31. Ne4 {[%clk 0:01:13]}  Rae8 {[%clk 0:00:51]} 32. Ng5 {[%clk 0:01:06]}  Re3 {[%clk 0:00:36]} 33. Kh2 {[%clk 0:01:06]}  Rg3 {[%clk 0:00:31]} 34. Bxf5 {[%clk 0:01:03]}  Rxg5 {[%clk 0:00:31]} 35. Be6+ {[%clk 0:01:03]}  Kg7 {[%clk 0:00:32]} 36. c5 {[%clk 0:00:30]}  Rf2+ {[%clk 0:00:31]} 37. Kh3 {[%clk 0:00:29]}  Re5 {[%clk 0:00:27]} 38. Kg3 {[%clk 0:00:14]}  Rc2 {[%clk 0:00:26]} 39. b4 {[%clk 0:00:13]}  Re3+ {[%clk 0:00:19]} 40. Kf4 {[%clk 0:00:12]}  Rd3 {[%clk 0:00:17]} 41. Ke4 {[%clk 0:00:11]}  Rg3 {[%clk 0:00:16]} 42. a3 {[%clk 0:00:07]}  Rc4+ {[%clk 0:00:15]} 43. Ke5 {[%clk 0:00:06]}  b6 {[%clk 0:00:13]} 44. Kd6 {[%clk 0:00:05]}  bxc5 {[%clk 0:00:12]} 45. bxc5 {[%clk 0:00:06]}  Rgc3 {[%clk 0:00:12]} 46. c6 {[%clk 0:00:07]}  h5 {[%clk 0:00:11]} 47. Rb1 {[%clk 0:00:05]}  h4 {[%clk 0:00:10]} 48. Rh1 {[%clk 0:00:05]}  g5 {[%clk 0:00:09]} 49. Bd7 {[%clk 0:00:04]}  Kf6 {[%clk 0:00:08]} 50. Kc7 {[%clk 0:00:04]}  Rd4 {[%clk 0:00:07]} 51. d6 {[%clk 0:00:04]}  Rcd3 {[%clk 0:00:08]} 52. Kb7 {[%clk 0:00:02]}  Rxd6 {[%clk 0:00:08]} 53. Be8 {[%clk 0:00:02]}  Rb3+ {[%clk 0:00:05]} 54. Ka6 {[%clk 0:00:02]}  Re6 {[%clk 0:00:03]} 55. Bd7 {[%clk 0:00:02]}  Rd6 {[%clk 0:00:03]} 56. Kxa7 {[%clk 0:00:02]}  Rxd7+ {[%clk 0:00:03]} 57. cxd7 {[%clk 0:00:02]}  Rd3 {[%clk 0:00:03]} 58. Rf1+ {[%clk 0:00:02]}  Kg7 {[%clk 0:00:03]} 59. Rg1 {[%clk 0:00:02]}  Kg6 {[%clk 0:00:03]} 60. Re1 {[%clk 0:00:02]}  Rxd7+ {[%clk 0:00:03]} 61. Kb6 {[%clk 0:00:02]}  Rh7 {[%clk 0:00:03]} 62. Kc5 {[%clk 0:00:02]}  h3 {[%clk 0:00:03]} 63. Kd4 {[%clk 0:00:01]}  h2 {[%clk 0:00:03]} 64. Rh1 {[%clk 0:00:02]}  g4 {[%clk 0:00:04]} 65. Ke3 {[%clk 0:00:03]}  Kg5 {[%clk 0:00:04]} 66. Kf2 {[%clk 0:00:03]}  Kf4 {[%clk 0:00:04]} 67. Kg2 {[%clk 0:00:03]}  g3 {[%clk 0:00:05]} 68. Rf1+ {[%clk 0:00:04]}  Kg4 {[%clk 0:00:04]} 69. Rh1 {[%clk 0:00:05]}  Re7 {[%clk 0:00:04]} 70. Rf1 {[%clk 0:00:05]}  Re2+ {[%clk 0:00:05]} 71. Kh1 {[%clk 0:00:05]}  Rf2 {[%clk 0:00:05]} 72. Rd1 {[%clk 0:00:04]}  Kf3 {[%clk 0:00:05]} 73. Rd3+ {[%clk 0:00:04]}  Ke2 {[%clk 0:00:05]} 74. Rxg3 {[%clk 0:00:04]}  Kf1 {[%clk 0:00:03]} 75. Rh3 {[%clk 0:00:03]}  Ra2 {[%clk 0:00:02]} 76. Rg3 {[%clk 0:00:02]} 1-0


[Site "https://www.chess.com"]

[Event "Titled Tuesday Blitz September 28 2021"]
[White "Assaubayeva, Bibisara"]
[Black "Timmermans, Mark"]
[WhiteFideId "13708694"]
[BlackFideId "1026399"]
[WhiteElo "2681"]
[BlackElo "2837"]
[Result "1-0"]
[Round "09"]
[TimeControl "180+1"]
[Date "2021.09.28"]
[WhiteClock "0:00:44"]
[BlackClock "0:00:27"]

1. d4 {[%clk 0:03:00]}  Nf6 {[%clk 0:02:58]} 2. c4 {[%clk 0:03:01]}  e6 {[%clk 0:02:58]} 3. Nf3 {[%clk 0:03:01]}  d5 {[%clk 0:02:59]} 4. Nc3 {[%clk 0:03:00]}  dxc4 {[%clk 0:02:59]} 5. Bg5 {[%clk 0:02:59]}  Nbd7 {[%clk 0:02:55]} 6. e4 {[%clk 0:02:58]}  a6 {[%clk 0:02:39]} 7. Bxc4 {[%clk 0:02:56]}  b5 {[%clk 0:02:38]} 8. Bd3 {[%clk 0:02:53]}  Bb7 {[%clk 0:02:38]} 9. O-O {[%clk 0:02:41]}  h6 {[%clk 0:02:39]} 10. Bxf6 {[%clk 0:02:36]}  Nxf6 {[%clk 0:02:39]} 11. Qe2 {[%clk 0:02:35]}  Be7 {[%clk 0:02:38]} 12. Rac1 {[%clk 0:02:28]}  b4 {[%clk 0:02:30]} 13. Na4 {[%clk 0:02:26]}  Nd7 {[%clk 0:02:18]} 14. Nc5 {[%clk 0:02:18]}  Nxc5 {[%clk 0:02:14]} 15. dxc5 {[%clk 0:02:17]}  O-O {[%clk 0:01:56]} 16. c6 {[%clk 0:02:11]}  Bc8 {[%clk 0:01:56]} 17. Rfd1 {[%clk 0:02:12]}  Qe8 {[%clk 0:01:53]} 18. e5 {[%clk 0:02:11]}  f5 {[%clk 0:01:48]} 19. exf6 {[%clk 0:02:09]}  Bxf6 {[%clk 0:01:47]} 20. Qe4 {[%clk 0:02:09]}  Kf7 {[%clk 0:01:44]} 21. Qxb4 {[%clk 0:02:03]}  Qe7 {[%clk 0:01:26]} 22. Qg4 {[%clk 0:01:56]}  Rd8 {[%clk 0:01:24]} 23. Qg6+ {[%clk 0:01:37]}  Kf8 {[%clk 0:01:24]} 24. Bc4 {[%clk 0:01:36]}  Qf7 {[%clk 0:01:15]} 25. Rxd8+ {[%clk 0:01:32]}  Bxd8 {[%clk 0:01:16]} 26. Qh7 {[%clk 0:01:32]}  Bf6 {[%clk 0:01:16]} 27. Rd1 {[%clk 0:01:28]}  a5 {[%clk 0:01:10]} 28. Ne5 {[%clk 0:01:22]}  Qe8 {[%clk 0:01:04]} 29. Nd7+ {[%clk 0:01:07]}  Kf7 {[%clk 0:01:04]} 30. Bd3 {[%clk 0:01:05]}  Ke7 {[%clk 0:01:01]} 31. Bg6 {[%clk 0:01:01]}  Bxd7 {[%clk 0:00:56]} 32. Rxd7+ {[%clk 0:00:59]}  Qxd7 {[%clk 0:00:56]} 33. cxd7 {[%clk 0:00:59]}  Kxd7 {[%clk 0:00:56]} 34. b3 {[%clk 0:00:57]}  a4 {[%clk 0:00:54]} 35. Bc2 {[%clk 0:00:57]}  axb3 {[%clk 0:00:53]} 36. Bxb3 {[%clk 0:00:58]}  c6 {[%clk 0:00:48]} 37. Qd3+ {[%clk 0:00:58]}  Kc7 {[%clk 0:00:43]} 38. g3 {[%clk 0:00:55]}  Rd8 {[%clk 0:00:40]} 39. Qa6 {[%clk 0:00:54]}  Bd4 {[%clk 0:00:35]} 40. Kg2 {[%clk 0:00:49]}  Bb6 {[%clk 0:00:35]} 41. Qe2 {[%clk 0:00:46]}  Rf8 {[%clk 0:00:32]} 42. Qe5+ {[%clk 0:00:45]}  Kd8 {[%clk 0:00:27]} 43. Qb8+ {[%clk 0:00:44]} 1-0


[Site "https://www.chess.com"]

[Event "Titled Tuesday Blitz September 28 2021"]
[White "Avila Pavas, Santiago"]
[Black "Bach, Ngoc Thuy Duong"]
[WhiteFideId "4437128"]
[BlackFideId "12408956"]
[WhiteElo "2292"]
[BlackElo "1896"]
[Result "0-1"]
[Round "09"]
[TimeControl "180+1"]
[Date "2021.09.28"]
[WhiteClock "0:01:07"]
[BlackClock "0:01:28"]

1. d4 {[%clk 0:03:00]}  d5 {[%clk 0:02:59]} 2. Nf3 {[%clk 0:03:00]}  Nf6 {[%clk 0:02:59]} 3. c4 {[%clk 0:03:00]}  c6 {[%clk 0:02:59]} 4. Nc3 {[%clk 0:03:01]}  e6 {[%clk 0:02:58]} 5. e3 {[%clk 0:03:00]}  Nbd7 {[%clk 0:02:57]} 6. Be2 {[%clk 0:03:01]}  dxc4 {[%clk 0:02:56]} 7. Bxc4 {[%clk 0:03:01]}  b5 {[%clk 0:02:56]} 8. Be2 {[%clk 0:03:01]}  a6 {[%clk 0:02:57]} 9. a4 {[%clk 0:02:58]}  b4 {[%clk 0:02:53]} 10. Nb1 {[%clk 0:02:58]}  a5 {[%clk 0:02:50]} 11. O-O {[%clk 0:02:58]}  Bb7 {[%clk 0:02:41]} 12. Nbd2 {[%clk 0:02:57]}  Be7 {[%clk 0:02:40]} 13. e4 {[%clk 0:02:46]}  O-O {[%clk 0:02:35]} 14. e5 {[%clk 0:02:42]}  Nd5 {[%clk 0:02:34]} 15. Nc4 {[%clk 0:02:41]}  c5 {[%clk 0:02:33]} 16. Bd3 {[%clk 0:02:23]}  cxd4 {[%clk 0:02:20]} 17. Nd6 {[%clk 0:02:23]}  Ba6 {[%clk 0:02:12]} 18. Nxd4 {[%clk 0:01:53]}  Bxd3 {[%clk 0:02:09]} 19. Qxd3 {[%clk 0:01:53]}  Nxe5 {[%clk 0:02:08]} 20. Qg3 {[%clk 0:01:39]}  Bxd6 {[%clk 0:02:03]} 21. Nb5 {[%clk 0:01:39]}  Bb8 {[%clk 0:02:03]} 22. Rd1 {[%clk 0:01:37]}  Ng6 {[%clk 0:02:01]} 23. Qf3 {[%clk 0:01:35]}  Be5 {[%clk 0:01:53]} 24. Be3 {[%clk 0:01:28]}  Bxb2 {[%clk 0:01:46]} 25. Ra2 {[%clk 0:01:19]}  Qf6 {[%clk 0:01:37]} 26. Qe2 {[%clk 0:01:12]}  Nc3 {[%clk 0:01:29]} 27. Qxb2 {[%clk 0:01:07]}  Nxd1 {[%clk 0:01:28]} 0-1


[Site "https://www.chess.com"]

[Event "Titled Tuesday Blitz September 28 2021"]
[White "Bazarov, Konstantin"]
[Black "Cunha, Lucas Aguiar"]
[WhiteFideId "4137000"]
[BlackFideId "2125404"]
[WhiteElo "2035"]
[BlackElo "2361"]
[Result "1-0"]
[Round "09"]
[TimeControl "180+1"]
[Date "2021.09.28"]
[WhiteClock "0:00:09"]
[BlackClock "0:00:03"]

1. Nf3 {[%clk 0:02:41]}  d5 {[%clk 0:02:45]} 2. c4 {[%clk 0:02:40]}  d4 {[%clk 0:02:45]} 3. e3 {[%clk 0:02:40]}  c5 {[%clk 0:02:45]} 4. b4 {[%clk 0:02:40]}  dxe3 {[%clk 0:02:44]} 5. fxe3 {[%clk 0:02:38]}  cxb4 {[%clk 0:02:45]} 6. a3 {[%clk 0:02:37]}  bxa3 {[%clk 0:02:44]} 7. Bxa3 {[%clk 0:02:37]}  Nf6 {[%clk 0:02:45]} 8. d4 {[%clk 0:02:36]}  g6 {[%clk 0:02:45]} 9. Bd3 {[%clk 0:02:34]}  Bh6 {[%clk 0:02:46]} 10. Qe2 {[%clk 0:02:32]}  Qa5+ {[%clk 0:02:37]} 11. Nbd2 {[%clk 0:02:29]}  Ng4 {[%clk 0:02:37]} 12. O-O {[%clk 0:02:18]}  Nxe3 {[%clk 0:02:24]} 13. Bxe7 {[%clk 0:02:10]}  Qh5 {[%clk 0:02:02]} 14. Ba3 {[%clk 0:01:56]}  f5 {[%clk 0:01:35]} 15. Rfe1 {[%clk 0:01:50]}  Nd7 {[%clk 0:00:49]} 16. Qf2 {[%clk 0:01:46]}  f4 {[%clk 0:00:48]} 17. Ne4 {[%clk 0:01:38]}  Kd8 {[%clk 0:00:37]} 18. h3 {[%clk 0:01:17]}  g5 {[%clk 0:00:35]} 19. Rxe3 {[%clk 0:01:03]}  fxe3 {[%clk 0:00:34]} 20. Qg3 {[%clk 0:01:03]}  Qg6 {[%clk 0:00:17]} 21. Rd1 {[%clk 0:00:47]}  Qa6 {[%clk 0:00:14]} 22. Bd6 {[%clk 0:00:42]}  Qa4 {[%clk 0:00:11]} 23. Be2 {[%clk 0:00:39]}  Qc2 {[%clk 0:00:10]} 24. Re1 {[%clk 0:00:36]}  Qxe4 {[%clk 0:00:09]} 25. Nxg5 {[%clk 0:00:33]}  Qg6 {[%clk 0:00:06]} 26. h4 {[%clk 0:00:30]}  Bxg5 {[%clk 0:00:05]} 27. hxg5 {[%clk 0:00:30]}  Re8 {[%clk 0:00:03]} 28. Bf4 {[%clk 0:00:22]}  Re4 {[%clk 0:00:03]} 29. Bxe3 {[%clk 0:00:19]}  Qe8 {[%clk 0:00:03]} 30. Bd3 {[%clk 0:00:19]}  Re6 {[%clk 0:00:02]} 31. d5 {[%clk 0:00:18]}  Re7 {[%clk 0:00:03]} 32. Bf5 {[%clk 0:00:12]}  Ne5 {[%clk 0:00:03]} 33. d6 {[%clk 0:00:11]}  Bxf5 {[%clk 0:00:02]} 34. dxe7+ {[%clk 0:00:11]}  Qxe7 {[%clk 0:00:02]} 35. Bd4 {[%clk 0:00:10]}  Nf3+ {[%clk 0:00:03]} 36. gxf3 {[%clk 0:00:10]}  Qd7 {[%clk 0:00:03]} 37. Qe5 {[%clk 0:00:09]} 1-0


[Site "https://www.chess.com"]

[Event "Titled Tuesday Blitz September 28 2021"]
[White "Bristy, Mukherjee"]
[Black "Odegov, Artem"]
[WhiteFideId "25077325"]
[BlackFideId "34183644"]
[WhiteElo "1661"]
[BlackElo "2257"]
[Result "0-1"]
[Round "09"]
[TimeControl "180+1"]
[Date "2021.09.28"]
[WhiteClock "0:00:01"]
[BlackClock "0:00:07"]

1. d4 {[%clk 0:03:00]}  Nf6 {[%clk 0:02:57]} 2. Bg5 {[%clk 0:03:01]}  g6 {[%clk 0:02:54]} 3. Bxf6 {[%clk 0:03:01]}  exf6 {[%clk 0:02:55]} 4. e3 {[%clk 0:03:01]}  Bg7 {[%clk 0:02:56]} 5. Ne2 {[%clk 0:03:02]}  O-O {[%clk 0:02:57]} 6. Nf4 {[%clk 0:03:02]}  f5 {[%clk 0:02:56]} 7. h4 {[%clk 0:03:03]}  c5 {[%clk 0:02:56]} 8. c3 {[%clk 0:03:00]}  d5 {[%clk 0:02:56]} 9. dxc5 {[%clk 0:02:55]}  Be6 {[%clk 0:02:54]} 10. h5 {[%clk 0:02:55]}  g5 {[%clk 0:02:50]} 11. Nxe6 {[%clk 0:02:52]}  fxe6 {[%clk 0:02:51]} 12. Nd2 {[%clk 0:02:43]}  Nd7 {[%clk 0:02:50]} 13. Nb3 {[%clk 0:02:43]}  Qe7 {[%clk 0:02:47]} 14. h6 {[%clk 0:02:19]}  Bf6 {[%clk 0:02:44]} 15. g4 {[%clk 0:01:58]}  f4 {[%clk 0:02:40]} 16. exf4 {[%clk 0:01:54]}  gxf4 {[%clk 0:02:40]} 17. Qd2 {[%clk 0:01:42]}  Kh8 {[%clk 0:02:37]} 18. O-O-O {[%clk 0:01:34]}  f3 {[%clk 0:02:37]} 19. Kb1 {[%clk 0:01:16]}  a5 {[%clk 0:02:35]} 20. Nd4 {[%clk 0:01:05]}  Nxc5 {[%clk 0:02:33]} 21. Nxf3 {[%clk 0:01:04]}  Ne4 {[%clk 0:02:30]} 22. Qe3 {[%clk 0:01:02]}  Rac8 {[%clk 0:02:16]} 23. Bd3 {[%clk 0:01:02]}  Ng5 {[%clk 0:01:45]} 24. Nxg5 {[%clk 0:01:00]}  Bxg5 {[%clk 0:01:46]} 25. Qd4+ {[%clk 0:00:52]}  Bf6 {[%clk 0:01:46]} 26. Qe3 {[%clk 0:00:51]}  a4 {[%clk 0:01:41]} 27. f4 {[%clk 0:00:47]}  d4 {[%clk 0:01:33]} 28. cxd4 {[%clk 0:00:40]}  a3 {[%clk 0:01:33]} 29. b3 {[%clk 0:00:33]}  Qb4 {[%clk 0:01:25]} 30. Qe4 {[%clk 0:00:20]}  Rf7 {[%clk 0:01:26]} 31. g5 {[%clk 0:00:11]}  Qc3 {[%clk 0:01:20]} 32. Rh2 {[%clk 0:00:10]}  Bxd4 {[%clk 0:01:19]} 33. Bc4 {[%clk 0:00:08]}  e5 {[%clk 0:00:23]} 34. fxe5 {[%clk 0:00:03]}  Qa1+ {[%clk 0:00:17]} 35. Kc2 {[%clk 0:00:03]}  Qb2+ {[%clk 0:00:12]} 36. Kd3 {[%clk 0:00:03]}  Qxh2 {[%clk 0:00:12]} 37. Qxd4 {[%clk 0:00:02]}  Rf3+ {[%clk 0:00:08]} 38. Ke4 {[%clk 0:00:02]}  Rf4+ {[%clk 0:00:08]} 39. Kd5 {[%clk 0:00:02]}  Rd8+ {[%clk 0:00:08]} 40. Ke6 {[%clk 0:00:01]}  Rfxd4 {[%clk 0:00:08]} 41. Rf1 {[%clk 0:00:01]}  Qh3+ {[%clk 0:00:08]} 42. Rf5 {[%clk 0:00:01]}  Rf4 {[%clk 0:00:07]} 0-1


[Site "https://www.chess.com"]

[Event "Titled Tuesday Blitz September 28 2021"]
[White "Di Nicolantonio, Lucas"]
[Black "Garrido Outon, Alex"]
[WhiteFideId "680460"]
[BlackFideId "24516279"]
[WhiteElo "2381"]
[BlackElo "2131"]
[Result "1-0"]
[Round "09"]
[TimeControl "180+1"]
[Date "2021.09.28"]
[WhiteClock "0:01:07"]
[BlackClock "0:00:57"]

1. e4 {[%clk 0:03:00]}  c6 {[%clk 0:02:59]} 2. d4 {[%clk 0:02:57]}  g6 {[%clk 0:02:59]} 3. Nc3 {[%clk 0:02:55]}  d5 {[%clk 0:02:59]} 4. Nf3 {[%clk 0:02:53]}  Bg7 {[%clk 0:02:59]} 5. h3 {[%clk 0:02:53]}  dxe4 {[%clk 0:02:59]} 6. Nxe4 {[%clk 0:02:53]}  Nf6 {[%clk 0:03:00]} 7. Bd3 {[%clk 0:02:50]}  O-O {[%clk 0:02:58]} 8. O-O {[%clk 0:02:48]}  Nxe4 {[%clk 0:02:55]} 9. Bxe4 {[%clk 0:02:49]}  Nd7 {[%clk 0:02:56]} 10. c3 {[%clk 0:02:49]}  Nf6 {[%clk 0:02:56]} 11. Bc2 {[%clk 0:02:49]}  Qc7 {[%clk 0:02:44]} 12. Re1 {[%clk 0:02:46]}  Re8 {[%clk 0:02:43]} 13. Ne5 {[%clk 0:02:37]}  Nd7 {[%clk 0:02:34]} 14. Bf4 {[%clk 0:02:17]}  Qb6 {[%clk 0:02:20]} 15. Bb3 {[%clk 0:02:09]}  Nxe5 {[%clk 0:02:20]} 16. Bxe5 {[%clk 0:02:09]}  c5 {[%clk 0:02:12]} 17. Qf3 {[%clk 0:01:49]}  e6 {[%clk 0:02:10]} 18. Rad1 {[%clk 0:01:43]}  a5 {[%clk 0:01:58]} 19. Ba4 {[%clk 0:01:34]}  Rd8 {[%clk 0:01:32]} 20. dxc5 {[%clk 0:01:20]}  Rxd1 {[%clk 0:01:32]} 21. Rxd1 {[%clk 0:01:15]}  Qxc5 {[%clk 0:00:57]} 22. Rd8+ {[%clk 0:01:13]}  Bf8 {[%clk 0:00:57]} 23. Qf6 {[%clk 0:01:07]} 1-0


[Site "https://www.chess.com"]

[Event "Titled Tuesday Blitz September 28 2021"]
[White "Drozdowski, Kacper"]
[Black "Paltrinieri, Nicholas"]
[WhiteFideId "1136720"]
[BlackFideId "828262"]
[WhiteElo "2507"]
[BlackElo "2254"]
[Result "1-0"]
[Round "09"]
[TimeControl "180+1"]
[Date "2021.09.28"]
[WhiteClock "0:01:03"]
[BlackClock "0:00:07"]

1. e4 {[%clk 0:03:00]}  e6 {[%clk 0:02:57]} 2. d4 {[%clk 0:03:00]}  d5 {[%clk 0:02:57]} 3. Nd2 {[%clk 0:03:01]}  Be7 {[%clk 0:02:57]} 4. Ngf3 {[%clk 0:03:00]}  Nf6 {[%clk 0:02:57]} 5. e5 {[%clk 0:03:00]}  Nfd7 {[%clk 0:02:57]} 6. Bd3 {[%clk 0:03:00]}  c5 {[%clk 0:02:57]} 7. c3 {[%clk 0:03:01]}  b6 {[%clk 0:02:57]} 8. Qe2 {[%clk 0:03:00]}  a5 {[%clk 0:02:57]} 9. O-O {[%clk 0:03:00]}  Ba6 {[%clk 0:02:58]} 10. Bxa6 {[%clk 0:02:59]}  Nxa6 {[%clk 0:02:58]} 11. Rd1 {[%clk 0:02:59]}  c4 {[%clk 0:02:48]} 12. Nf1 {[%clk 0:02:59]}  b5 {[%clk 0:02:48]} 13. Ng3 {[%clk 0:02:57]}  g6 {[%clk 0:02:33]} 14. Bh6 {[%clk 0:02:56]}  b4 {[%clk 0:02:32]} 15. Qe3 {[%clk 0:02:52]}  Nb6 {[%clk 0:02:25]} 16. h4 {[%clk 0:02:50]}  Na4 {[%clk 0:02:21]} 17. Rd2 {[%clk 0:02:49]}  Rb8 {[%clk 0:02:20]} 18. Bg5 {[%clk 0:02:42]}  h5 {[%clk 0:02:17]} 19. Ne2 {[%clk 0:02:36]}  Nc7 {[%clk 0:02:16]} 20. b3 {[%clk 0:01:55]}  Nb6 {[%clk 0:01:59]} 21. Rc1 {[%clk 0:01:50]}  Nb5 {[%clk 0:01:58]} 22. Bxe7 {[%clk 0:01:44]}  Qxe7 {[%clk 0:01:58]} 23. Ng5 {[%clk 0:01:45]}  Rc8 {[%clk 0:01:49]} 24. Rdc2 {[%clk 0:01:38]}  Na3 {[%clk 0:01:46]} 25. Rb2 {[%clk 0:01:37]}  Rc7 {[%clk 0:01:35]} 26. g3 {[%clk 0:01:37]}  cxb3 {[%clk 0:01:06]} 27. axb3 {[%clk 0:01:37]}  Nac4 {[%clk 0:01:05]} 28. bxc4 {[%clk 0:01:32]}  Nxc4 {[%clk 0:01:06]} 29. Qd3 {[%clk 0:01:32]}  Nxb2 {[%clk 0:01:05]} 30. Qb5+ {[%clk 0:01:32]}  Qd7 {[%clk 0:01:05]} 31. Qxa5 {[%clk 0:01:30]}  bxc3 {[%clk 0:01:00]} 32. Rxc3 {[%clk 0:01:13]}  Rxc3 {[%clk 0:00:54]} 33. Qxc3 {[%clk 0:01:14]}  Nc4 {[%clk 0:00:55]} 34. Qb4 {[%clk 0:01:13]}  Qc7 {[%clk 0:00:41]} 35. Nf4 {[%clk 0:01:13]}  Qb6 {[%clk 0:00:40]} 36. Qa4+ {[%clk 0:01:11]}  Ke7 {[%clk 0:00:36]} 37. Nxf7 {[%clk 0:01:07]}  Kxf7 {[%clk 0:00:21]} 38. Qd7+ {[%clk 0:01:06]}  Kg8 {[%clk 0:00:21]} 39. Nxe6 {[%clk 0:01:04]}  Nxe5 {[%clk 0:00:07]} 40. Qg7# {[%clk 0:01:03]} 1-0


[Site "https://www.chess.com"]

[Event "Titled Tuesday Blitz September 28 2021"]
[White "Erdogdu, Mert"]
[Black "Garv Gaur"]
[WhiteFideId "6301495"]
[BlackFideId "45030839"]
[WhiteElo "2485"]
[BlackElo "1950"]
[Result "0-1"]
[Round "09"]
[TimeControl "180+1"]
[Date "2021.09.28"]
[WhiteClock "0:00:03"]
[BlackClock "0:00:37"]

1. e4 {[%clk 0:03:00]}  c6 {[%clk 0:02:59]} 2. d4 {[%clk 0:03:00]}  d5 {[%clk 0:02:59]} 3. exd5 {[%clk 0:03:01]}  cxd5 {[%clk 0:03:00]} 4. c4 {[%clk 0:03:01]}  Nf6 {[%clk 0:03:00]} 5. Nc3 {[%clk 0:03:02]}  Nc6 {[%clk 0:03:00]} 6. Bg5 {[%clk 0:03:01]}  Be6 {[%clk 0:02:58]} 7. a3 {[%clk 0:03:00]}  g6 {[%clk 0:02:57]} 8. Bxf6 {[%clk 0:02:58]}  exf6 {[%clk 0:02:58]} 9. cxd5 {[%clk 0:02:58]}  Bxd5 {[%clk 0:02:59]} 10. Qe2+ {[%clk 0:02:59]}  Ne7 {[%clk 0:02:44]} 11. Nxd5 {[%clk 0:02:57]}  Qxd5 {[%clk 0:02:43]} 12. Qb5+ {[%clk 0:02:58]}  Qxb5 {[%clk 0:02:43]} 13. Bxb5+ {[%clk 0:02:58]}  Kd8 {[%clk 0:02:44]} 14. Nf3 {[%clk 0:02:52]}  Rc8 {[%clk 0:02:37]} 15. Ba4 {[%clk 0:02:47]}  Bh6 {[%clk 0:02:30]} 16. O-O {[%clk 0:02:46]}  Nf5 {[%clk 0:02:18]} 17. Rfe1 {[%clk 0:02:43]}  Nd6 {[%clk 0:02:16]} 18. Re2 {[%clk 0:02:34]}  b5 {[%clk 0:02:14]} 19. Bb3 {[%clk 0:02:31]}  Re8 {[%clk 0:02:14]} 20. Kf1 {[%clk 0:02:20]}  Rc1+ {[%clk 0:02:12]} 21. Rxc1 {[%clk 0:02:13]}  Bxc1 {[%clk 0:02:07]} 22. Rc2 {[%clk 0:02:10]}  Bf4 {[%clk 0:02:07]} 23. Bd5 {[%clk 0:02:05]}  Re7 {[%clk 0:02:06]} 24. g3 {[%clk 0:02:00]}  Bh6 {[%clk 0:02:05]} 25. Rc6 {[%clk 0:01:59]}  Nc8 {[%clk 0:02:05]} 26. Rc5 {[%clk 0:01:42]}  a6 {[%clk 0:01:59]} 27. Rc6 {[%clk 0:01:25]}  Ra7 {[%clk 0:01:50]} 28. Ke2 {[%clk 0:01:18]}  Kd7 {[%clk 0:01:49]} 29. Rc5 {[%clk 0:01:12]}  Nd6 {[%clk 0:01:47]} 30. Kd3 {[%clk 0:01:11]}  Rc7 {[%clk 0:01:44]} 31. Ne1 {[%clk 0:00:57]}  Bc1 {[%clk 0:01:39]} 32. Kc2 {[%clk 0:00:56]}  Bh6 {[%clk 0:01:36]} 33. Nd3 {[%clk 0:00:46]}  Bf8 {[%clk 0:01:28]} 34. Rxc7+ {[%clk 0:00:42]}  Kxc7 {[%clk 0:01:29]} 35. Nc5 {[%clk 0:00:43]}  a5 {[%clk 0:01:21]} 36. b4 {[%clk 0:00:41]}  axb4 {[%clk 0:01:11]} 37. axb4 {[%clk 0:00:42]}  f5 {[%clk 0:01:09]} 38. Kd3 {[%clk 0:00:40]}  Bg7 {[%clk 0:01:09]} 39. Bb3 {[%clk 0:00:35]}  g5 {[%clk 0:01:05]} 40. Bxf7 {[%clk 0:00:31]}  Nxf7 {[%clk 0:01:02]} 41. Ne6+ {[%clk 0:00:31]}  Kd6 {[%clk 0:01:02]} 42. Nxg7 {[%clk 0:00:32]}  Nh6 {[%clk 0:00:57]} 43. h3 {[%clk 0:00:28]}  Ke7 {[%clk 0:00:55]} 44. f4 {[%clk 0:00:20]}  g4 {[%clk 0:00:45]} 45. hxg4 {[%clk 0:00:14]}  fxg4 {[%clk 0:00:44]} 46. Ke4 {[%clk 0:00:13]}  Nf7 {[%clk 0:00:43]} 47. Kd5 {[%clk 0:00:09]}  Kf6 {[%clk 0:00:43]} 48. Ne8+ {[%clk 0:00:09]}  Ke7 {[%clk 0:00:43]} 49. Nc7 {[%clk 0:00:09]}  Nd6 {[%clk 0:00:43]} 50. Kc6 {[%clk 0:00:06]}  Nf5 {[%clk 0:00:43]} 51. d5 {[%clk 0:00:07]}  h5 {[%clk 0:00:38]} 52. Nxb5 {[%clk 0:00:04]}  h4 {[%clk 0:00:38]} 53. d6+ {[%clk 0:00:03]}  Kd8 {[%clk 0:00:37]} 54. gxh4 {[%clk 0:00:03]}  g3 {[%clk 0:00:37]} 0-1


[Site "https://www.chess.com"]